fUSD/lending_fUSD_20240420
["ID","MTS","AMOUNT","RATE_DAILY","PERIOD"]
[323009480,1713586244595,-480.69772023,0.00015068,2]
[323009481,1713586244607,-870.128,0.00015068,2]
[323009482,1713586244618,-710.733,0.00015068,2]
[323009483,1713586245642,-496.27636977,0.00015068,2]
[323009484,1713586245662,-328.99421488,0.00015068,2]
[323009485,1713586245673,-1153.5,0.00015068,2]
[323009487,1713586246723,-1256.33139243,0.00015068,2]
[323009488,1713586246735,-5997.54200015,0.00015068,2]
[323009489,1713586246744,-2702.26,0.00015068,2]
[323009490,1713586246753,-500.0,0.00015068,2]
[323009491,1713586246762,-500.0,0.00015068,2]
[323009492,1713586246771,-5609.35,0.00015068,2]
[323009493,1713586246780,-3362.34,0.00015068,2]
[323009494,1713586246792,-440.54787541,0.00015068,2]
[323009495,1713586246801,-500.0,0.00015068,2]
[323009496,1713586246810,-500.0,0.00015068,2]
[323009497,1713586246819,-2252.88,0.00015068,2]
[323009498,1713586246828,-500.0,0.00015068,2]
[323009499,1713586246838,-1337.59,0.00015068,2]
[323009501,1713586246847,-532.11,0.00015068,2]
[323009503,1713586246856,-18319.72,0.00015068,2]
[323009505,1713586246865,-500.0,0.00015068,2]
[323009507,1713586246874,-500.0,0.00015068,2]
[323009509,1713586246883,-452.49836194,0.00015068,2]
[323009511,1713586246892,-500.0,0.00015068,2]
[323009513,1713586246902,-500.0,0.00015068,2]
[323009514,1713586246911,-916.69,0.00015068,2]
[323009517,1713586246921,-500.0,0.00015068,2]
[323009519,1713586246930,-611.27,0.00015068,2]
[323009521,1713586246939,-500.0,0.00015068,2]
[323009523,1713586246948,-500.0,0.00015068,2]
[323009524,1713586246957,-500.0,0.00015068,2]
[323009527,1713586246967,-500.0,0.00015068,2]
[323009529,1713586246976,-2286.42,0.00015068,2]
[323009531,1713586246985,-500.0,0.00015068,2]
[323009533,1713586246994,-500.0,0.00015068,2]
[323009535,1713586247003,-500.0,0.00015068,2]
[323009537,1713586247012,-1597.7,0.00015068,2]
[323009539,1713586247021,-500.0,0.00015068,2]
[323009541,1713586247030,-500.0,0.00015068,2]
[323009543,1713586247040,-965.86,0.00015068,2]
[323009545,1713586247049,-500.0,0.00015068,2]
[323009547,1713586247058,-500.0,0.00015068,2]
[323009549,1713586247067,-500.0,0.00015068,2]
[323009551,1713586247077,-574.5,0.00015068,2]
[323009553,1713586247086,-500.0,0.00015068,2]
[323009555,1713586247096,-1896.41,0.00015068,2]
[323009557,1713586247105,-937.91,0.00015068,2]
[323009559,1713586247113,-1396.69,0.00015068,2]
[323009561,1713586247122,-1209.29,0.00015068,2]
[323009562,1713586247131,-500.0,0.00015068,2]
[323009565,1713586247141,-525.43,0.00015068,2]
[323009566,1713586247150,-500.0,0.00015068,2]
[323009568,1713586247159,-9994.01,0.00015068,2]
[323009570,1713586247168,-500.0,0.00015068,2]
[323009572,1713586247177,-500.0,0.00015068,2]
[323009574,1713586247187,-1056.96,0.00015068,2]
[323009577,1713586247196,-500.0,0.00015068,2]
[323009579,1713586247206,-1255.25,0.00015068,2]
[323009581,1713586247216,-2028.45,0.00015068,2]
[323009583,1713586247225,-500.0,0.00015068,2]
[323009584,1713586247234,-500.0,0.00015068,2]
[323009587,1713586247243,-500.0,0.00015068,2]
[323009589,1713586247256,-3585.9,0.00015068,2]
[323009590,1713586247265,-5445.37,0.00015068,2]
[323009592,1713586247275,-599.72,0.00015068,2]
[323009595,1713586247289,-500.0,0.00015068,2]
[323009596,1713586247298,-632.23,0.00015068,2]
[323009597,1713586247309,-500.0,0.00015068,2]
[323009598,1713586247318,-500.0,0.00015068,2]
[323009599,1713586247329,-500.0,0.00015068,2]
[323009600,1713586247338,-940.31,0.00015068,2]
[323009601,1713586247347,-735.39,0.00015068,2]
[323009602,1713586247359,-2004.42,0.00015068,2]
[323009603,1713586247370,-679.69,0.00015068,2]
[323009604,1713586247379,-500.0,0.00015068,2]
[323009605,1713586247389,-500.0,0.00015068,2]
[323009606,1713586247399,-500.0,0.00015068,2]
[323009607,1713586247410,-500.0,0.00015068,2]
[323009608,1713586247419,-500.0,0.00015068,2]
[323009609,1713586247428,-315.40727453,0.00015068,2]
[323009610,1713586247439,-1202.23,0.00015068,2]
[323009611,1713586247449,-500.0,0.00015068,2]
[323009612,1713586247458,-500.0,0.00015068,2]
[323009613,1713586247467,-500.0,0.00015068,2]
[323009614,1713586247477,-2083.78,0.00015068,2]
[323009615,1713586247488,-857.27,0.00015068,2]
[323009616,1713586247497,-5696.28,0.00015068,2]
[323009617,1713586247507,-2397.89,0.00015068,2]
[323009618,1713586247516,-500.0,0.00015068,2]
[323009619,1713586247525,-693.59,0.00015068,2]
[323009620,1713586247534,-500.0,0.00015068,2]
[323009621,1713586247544,-1448.5,0.00015068,2]
[323009622,1713586247553,-500.0,0.00015068,2]
[323009623,1713586247563,-500.0,0.00015068,2]
[323009624,1713586247572,-899.35,0.00015068,2]
[323009625,1713586247581,-500.0,0.00015068,2]
[323009626,1713586247590,-500.0,0.00015068,2]
[323009627,1713586247602,-884.77,0.00015068,2]
[323009628,1713586247612,-500.0,0.00015068,2]
[323009629,1713586247622,-1266.08,0.00015068,2]
[323009630,1713586247631,-500.0,0.00015068,2]
[323009631,1713586247641,-1705.36,0.00015068,2]
[323009632,1713586247650,-500.0,0.00015068,2]
[323009633,1713586247661,-669.55,0.00015068,2]
[323009634,1713586247670,-3192.34,0.00015068,2]
[323009635,1713586247680,-500.0,0.00015068,2]
[323009636,1713586247690,-500.0,0.00015068,2]
[323009637,1713586247699,-500.0,0.00015068,2]
[323009638,1713586247708,-500.0,0.00015068,2]
[323009639,1713586247717,-753.19,0.00015068,2]
[323009640,1713586247727,-500.0,0.00015068,2]
[323009641,1713586247736,-1220.18,0.00015068,2]
[323009642,1713586247746,-849.39,0.00015068,2]
[323009643,1713586247755,-22511.03,0.00015068,2]
[323009644,1713586247765,-690.5,0.00015068,2]
[323009645,1713586247774,-564.99,0.00015068,2]
[323009646,1713586247784,-568.54,0.00015068,2]
[323009647,1713586247794,-830.02,0.00015068,2]
[323009648,1713586247804,-2106.94,0.00015068,2]
[323009649,1713586247814,-500.0,0.00015068,2]
[323009650,1713586247824,-500.0,0.00015068,2]
[323009651,1713586247835,-500.0,0.00015068,2]
[323009652,1713586247845,-500.0,0.00015068,2]
[323009653,1713586247854,-500.0,0.00015068,2]
[323009654,1713586247864,-2789.44,0.00015068,2]
[323009655,1713586247873,-500.0,0.00015068,2]
[323009656,1713586247882,-1836.04,0.00015068,2]
[323009657,1713586247891,-517.66,0.00015068,2]
[323009658,1713586247901,-500.0,0.00015068,2]
[323009659,1713586247910,-911.48,0.00015068,2]
[323009660,1713586247919,-574.42,0.00015068,2]
[323009661,1713586247928,-1674.14,0.00015068,2]
[323009662,1713586247937,-998.17,0.00015068,2]
[323009663,1713586247946,-500.0,0.00015068,2]
[323009664,1713586247955,-2679.79,0.00015068,2]
[323009665,1713586247964,-500.0,0.00015068,2]
[323009666,1713586247973,-500.0,0.00015068,2]
[323009667,1713586247983,-1144.85,0.00015068,2]
[323009668,1713586247993,-500.0,0.00015068,2]
[323009669,1713586248005,-500.0,0.00015068,2]
[323009670,1713586248015,-1548.65,0.00015068,2]
[323009671,1713586248024,-2248.89,0.00015068,2]
[323009672,1713586248034,-2247.45,0.00015068,2]
[323009673,1713586248044,-500.0,0.00015068,2]
[323009674,1713586248053,-153.19207726,0.00015068,2]
[323009675,1713586248062,-500.0,0.00015068,2]
[323009676,1713586248073,-727.64,0.00015068,2]
[323009677,1713586248083,-500.0,0.00015068,2]
[323009678,1713586248092,-1098.66,0.00015068,2]
[323009679,1713586248102,-500.0,0.00015068,2]
[323009680,1713586248111,-4141.74,0.00015068,2]
[323009681,1713586248121,-500.0,0.00015068,2]
[323009682,1713586248130,-500.0,0.00015068,2]
[323009683,1713586248140,-1270.71,0.00015068,2]
[323009684,1713586248149,-2461.61,0.00015068,2]
[323009685,1713586248159,-790.22,0.00015068,2]
[323009686,1713586248169,-957.26,0.00015068,2]
[323009687,1713586248180,-1475.08,0.00015068,2]
[323009688,1713586248191,-500.0,0.00015068,2]
[323009689,1713586248201,-500.0,0.00015068,2]
[323009690,1713586248213,-500.0,0.00015068,2]
[323009691,1713586248222,-500.0,0.00015068,2]
[323009692,1713586248232,-574.83,0.00015068,2]
[323009693,1713586248240,-2229.12,0.00015068,2]
[323009694,1713586248250,-1131.46,0.00015068,2]
[323009695,1713586248259,-500.0,0.00015068,2]
[323009696,1713586248268,-2100.29,0.00015068,2]
[323009697,1713586248277,-500.0,0.00015068,2]
[323009698,1713586248288,-846.16,0.00015068,2]
[323009699,1713586248299,-2198.22,0.00015068,2]
[323009700,1713586248308,-500.0,0.00015068,2]
[323009701,1713586248317,-825.51,0.00015068,2]
[323009702,1713586248328,-500.0,0.00015068,2]
[323009703,1713586248338,-500.0,0.00015068,2]
[323009704,1713586248347,-500.0,0.00015068,2]
[323009705,1713586248358,-1686.99,0.00015068,2]
[323009706,1713586248368,-2614.43,0.00015068,2]
[323009707,1713586248377,-500.0,0.00015068,2]
[323009708,1713586248386,-2566.0,0.00015068,2]
[323009709,1713586248396,-500.0,0.00015068,2]
[323009710,1713586248406,-819.76,0.00015068,2]
[323009711,1713586248416,-1028.65,0.00015068,2]
[323009712,1713586248425,-1636.23,0.00015068,2]
[323009713,1713586248434,-890.72,0.00015068,2]
[323009714,1713586248444,-820.24,0.00015068,2]
[323009715,1713586248455,-504.90965909,0.00015068,2]
[323009716,1713586248465,-500.0,0.00015068,2]
[323009717,1713586248475,-500.0,0.00015068,2]
[323009718,1713586248485,-1000.79,0.00015068,2]
[323009719,1713586248496,-1291.62,0.00015068,2]
[323009720,1713586248507,-1561.27,0.00015068,2]
[323009721,1713586248516,-720.08,0.00015068,2]
[323009722,1713586248527,-1457.32,0.00015068,2]
[323009723,1713586248537,-528.29,0.00015068,2]
[323009724,1713586248547,-500.0,0.00015068,2]
[323009725,1713586248557,-1809.89,0.00015068,2]
[323009726,1713586248567,-4054.19,0.00015068,2]
[323009727,1713586248576,-500.0,0.00015068,2]
[323009728,1713586248586,-500.0,0.00015068,2]
[323009729,1713586248596,-1188.39,0.00015068,2]
[323009730,1713586248606,-500.0,0.00015068,2]
[323009731,1713586248616,-1332.16,0.00015068,2]
[323009732,1713586248626,-500.0,0.00015068,2]
[323009733,1713586248636,-500.0,0.00015068,2]
[323009734,1713586248645,-500.0,0.00015068,2]
[323009735,1713586248655,-500.0,0.00015068,2]
[323009736,1713586248665,-500.0,0.00015068,2]
[323009737,1713586248674,-5851.89,0.00015068,2]
[323009738,1713586248683,-4062.79,0.00015068,2]
[323009739,1713586248692,-14317.96,0.00015068,2]
[323009740,1713586248701,-592.24,0.00015068,2]
[323009741,1713586248710,-829.59,0.00015068,2]
[323009742,1713586248719,-1634.94,0.00015068,2]
[323009743,1713586248728,-500.0,0.00015068,2]
[323009744,1713586248737,-500.0,0.00015068,2]
[323009745,1713586248746,-730.84,0.00015068,2]
[323009746,1713586248756,-938.93,0.00015068,2]
[323009747,1713586248764,-500.0,0.00015068,2]
[323009748,1713586248774,-500.0,0.00015068,2]
[323009749,1713586248783,-2390.82,0.00015068,2]
[323009750,1713586248792,-500.0,0.00015068,2]
[323009751,1713586248801,-1598.0,0.00015068,2]
[323009752,1713586248810,-22411.81,0.00015068,2]
[323009753,1713586248820,-500.0,0.00015068,2]
[323009754,1713586248828,-500.0,0.00015068,2]
[323009755,1713586248838,-500.0,0.00015068,2]
[323009756,1713586248847,-2634.32,0.00015068,2]
[323009757,1713586248856,-500.0,0.00015068,2]
[323009758,1713586248865,-4032.2,0.00015068,2]
[323009759,1713586248874,-2236.36,0.00015068,2]
[323009760,1713586248883,-1477.04,0.00015068,2]
[323009761,1713586248892,-802.84,0.00015068,2]
[323009762,1713586248901,-500.0,0.00015068,2]
[323009763,1713586248910,-1859.81,0.00015068,2]
[323009764,1713586248919,-500.0,0.00015068,2]
[323009765,1713586248928,-500.0,0.00015068,2]
[323009766,1713586248937,-1797.36,0.00015068,2]
[323009767,1713586248946,-835.62,0.00015068,2]
[323009768,1713586248955,-500.0,0.00015068,2]
[323009769,1713586248964,-4708.29,0.00015068,2]
[323009770,1713586248974,-1995.8,0.00015068,2]
[323009771,1713586248982,-3191.67,0.00015068,2]
[323009772,1713586248991,-500.0,0.00015068,2]
[323009773,1713586249000,-500.0,0.00015068,2]
[323009774,1713586249009,-500.0,0.00015068,2]
[323009775,1713586249019,-1909.6,0.00015068,2]
[323009776,1713586249028,-1321.01,0.00015068,2]
[323009777,1713586249037,-500.0,0.00015068,2]
[323009778,1713586249046,-500.0,0.00015068,2]
[323009779,1713586249055,-500.0,0.00015068,2]
[323009780,1713586249064,-500.0,0.00015068,2]
[323009781,1713586249074,-536.63,0.00015068,2]
[323009782,1713586249083,-500.0,0.00015068,2]
[323009783,1713586249091,-5042.94,0.00015068,2]
[323009784,1713586249101,-3031.95,0.00015068,2]
[323009785,1713586249110,-1463.72,0.00015068,2]
[323009786,1713586249118,-570.64,0.00015068,2]
[323009787,1713586249127,-1483.09,0.00015068,2]
[323009788,1713586249136,-500.0,0.00015068,2]
[323009789,1713586249145,-6339.13,0.00015068,2]
[323009790,1713586249154,-500.0,0.00015068,2]
[323009791,1713586249163,-500.0,0.00015068,2]
[323009792,1713586249172,-789.95,0.00015068,2]
[323009793,1713586249181,-2307.6,0.00015068,2]
[323009794,1713586249191,-500.0,0.00015068,2]
[323009795,1713586249200,-500.0,0.00015068,2]
[323009796,1713586249209,-500.0,0.00015068,2]
[323009797,1713586249218,-3989.84,0.00015068,2]
[323009798,1713586249227,-229.06556918,0.00015068,2]
[323009799,1713586249236,-824.95,0.00015068,2]
[323009800,1713586249245,-734.64,0.00015068,2]
[323009801,1713586249254,-1899.63,0.00015068,2]
[323009802,1713586249263,-500.0,0.00015068,2]
[323009803,1713586249273,-576.0,0.00015068,2]
[323009804,1713586249284,-780.14,0.00015068,2]
[323009805,1713586249294,-8592.5,0.00015068,2]
[323009806,1713586249303,-500.0,0.00015068,2]
[323009807,1713586249312,-500.0,0.00015068,2]
[323009808,1713586249322,-500.0,0.00015068,2]
[323009809,1713586249331,-500.0,0.00015068,2]
[323009810,1713586249340,-544.66,0.00015068,2]
[323009811,1713586249349,-500.0,0.00015068,2]
[323009812,1713586249359,-500.0,0.00015068,2]
[323009813,1713586249368,-500.0,0.00015068,2]
[323009814,1713586249377,-500.0,0.00015068,2]
[323009815,1713586249386,-500.0,0.00015068,2]
[323009816,1713586249395,-500.0,0.00015068,2]
[323009817,1713586249404,-500.0,0.00015068,2]
[323009818,1713586249413,-2824.62,0.00015068,2]
[323009819,1713586249422,-500.0,0.00015068,2]
[323009820,1713586249431,-1577.97,0.00015068,2]
[323009821,1713586249441,-170.00180279,0.00015101,2]
[323009822,1713586249451,-187.42682894,0.00015101,2]
[323009823,1713586249460,-170.00180279,0.00015234,2]
[323009824,1713586249469,-187.42682894,0.00015234,2]
[323009825,1713586249478,-3207.0,0.000153,2]
[323009826,1713586249487,-642.0,0.00015342,2]
[323009827,1713586249496,-800.76,0.00015342,2]
[323009828,1713586249505,-500.0,0.00015342,2]
[323009829,1713586249515,-500.0,0.00015342,2]
[323009830,1713586249523,-500.0,0.00015342,2]
[323009831,1713586249532,-500.0,0.00015342,2]
[323009832,1713586249542,-772.06,0.00015342,2]
[323009833,1713586249551,-500.0,0.00015342,2]
[323009834,1713586249559,-500.0,0.00015342,2]
[323009835,1713586249568,-500.0,0.00015342,2]
[323009836,1713586249577,-500.0,0.00015342,2]
[323009837,1713586249586,-622.16,0.00015342,2]
[323009838,1713586249595,-500.0,0.00015342,2]
[323009839,1713586249604,-500.0,0.00015342,2]
[323009840,1713586249613,-154.45265397,0.00015342,2]
[323009841,1713586249622,-500.0,0.00015342,2]
[323009842,1713586249631,-500.0,0.00015342,2]
[323009843,1713586249639,-840.0,0.00015342,2]
[323009844,1713586249648,-500.0,0.00015342,2]
[323009845,1713586249657,-500.0,0.00015342,2]
[323009846,1713586249666,-680.88,0.00015342,2]
[323009847,1713586249675,-500.0,0.00015342,2]
[323009848,1713586249684,-500.0,0.00015342,2]
[323009849,1713586249693,-567.86,0.00015342,2]
[323009850,1713586249702,-905.7,0.00015342,2]
[323009851,1713586249711,-500.0,0.00015342,2]
[323009852,1713586249720,-1143.7,0.00015342,2]
[323009853,1713586249729,-581.42,0.00015342,2]
[323009854,1713586249738,-500.0,0.00015342,2]
[323009855,1713586249747,-500.0,0.00015342,2]
[323009856,1713586249756,-863.67,0.00015342,2]
[323009857,1713586249765,-500.0,0.00015342,2]
[323009858,1713586249774,-500.0,0.00015342,2]
[323009859,1713586249783,-500.0,0.00015342,2]
[323009860,1713586249792,-500.0,0.00015342,2]
[323009861,1713586249801,-595.25,0.00015342,2]
[323009862,1713586249810,-692.24,0.00015342,2]
[323009863,1713586249819,-500.0,0.00015342,2]
[323009864,1713586249828,-500.0,0.00015342,2]
[323009865,1713586249837,-500.0,0.00015342,2]
[323009866,1713586249847,-500.0,0.00015342,2]
[323009867,1713586249855,-500.0,0.00015342,2]
[323009868,1713586249865,-698.27,0.00015342,2]
[323009869,1713586249874,-500.0,0.00015342,2]
[323009870,1713586249883,-500.0,0.00015342,2]
[323009871,1713586249892,-500.0,0.00015342,2]
[323009872,1713586249901,-500.0,0.00015342,2]
[323009873,1713586249911,-500.0,0.00015342,2]
[323009874,1713586249920,-532.52,0.00015342,2]
[323009875,1713586249929,-500.0,0.00015342,2]
[323009876,1713586249938,-500.0,0.00015342,2]
[323009877,1713586249947,-500.0,0.00015342,2]
[323009878,1713586249957,-500.0,0.00015342,2]
[323009879,1713586249966,-500.0,0.00015342,2]
[323009880,1713586249975,-500.0,0.00015342,2]
[323009881,1713586249984,-500.0,0.00015342,2]
[323009882,1713586249993,-500.0,0.00015342,2]
[323009883,1713586250002,-500.0,0.00015342,2]
[323009884,1713586250011,-643.99,0.00015342,2]
[323009885,1713586250020,-843.69,0.00015342,2]
[323009886,1713586250029,-519.24,0.00015342,2]
[323009887,1713586250038,-375.81983974,0.00015342,2]
[323009888,1713586250048,-721.29,0.00015342,2]
[323009889,1713586250057,-500.0,0.00015342,2]
[323009890,1713586250066,-331.53783322,0.00015342,2]
[323009891,1713586250075,-541.69,0.00015342,2]
[323009892,1713586250084,-574.38,0.00015342,2]
[323009893,1713586250093,-500.0,0.00015342,2]
[323009894,1713586250101,-500.0,0.00015342,2]
[323009895,1713586250111,-530.53,0.00015342,2]
[323009896,1713586250120,-500.0,0.00015342,2]
[323009897,1713586250129,-500.0,0.00015342,2]
[323009898,1713586250137,-500.0,0.00015342,2]
[323009899,1713586250146,-543.05,0.00015342,2]
[323009900,1713586250156,-500.0,0.00015342,2]
[323009901,1713586250165,-330.22350614,0.00015342,2]
[323009902,1713586250173,-500.0,0.00015342,2]
[323009903,1713586250183,-548.21,0.00015342,2]
[323009904,1713586250192,-685.35,0.00015342,2]
[323009905,1713586250202,-500.0,0.00015342,2]
[323009906,1713586250211,-500.0,0.00015342,2]
[323009907,1713586250220,-360.89,0.00015342,2]
[323009908,1713586250230,-500.0,0.00015342,2]
[323009909,1713586250239,-500.0,0.00015342,2]
[323009910,1713586250248,-500.0,0.00015342,2]
[323009911,1713586250258,-500.0,0.00015342,2]
[323009912,1713586250267,-919.31,0.00015342,2]
[323009913,1713586250277,-500.0,0.00015342,2]
[323009914,1713586250289,-500.0,0.00015342,2]
[323009915,1713586250301,-509.76278789,0.00015342,2]
[323009916,1713586250310,-500.0,0.00015342,2]
[323009917,1713586250320,-500.0,0.00015342,2]
[323009918,1713586250329,-500.0,0.00015342,2]
[323009919,1713586250338,-781.9,0.00015342,2]
[323009920,1713586250494,-500.0,0.00015342,2]
[323009921,1713586250524,-500.0,0.00015342,2]
[323009922,1713586250534,-500.0,0.00015342,2]
[323009923,1713586250546,-747.12,0.00015342,2]
[323009924,1713586250557,-500.0,0.00015342,2]
[323009925,1713586250567,-500.0,0.00015342,2]
[323009926,1713586250577,-652.96,0.00015342,2]
[323009927,1713586250587,-704.08,0.00015342,2]
[323009928,1713586250596,-709.99,0.00015342,2]
[323009929,1713586250606,-1214.02,0.00015342,2]
[323009930,1713586250615,-504.71,0.00015342,2]
[323009931,1713586250625,-621.68,0.00015342,2]
[323009932,1713586250635,-500.0,0.00015342,2]
[323009933,1713586250644,-235.41895715,0.00015342,2]
[323009934,1713586250654,-500.0,0.00015342,2]
[323009935,1713586250664,-500.0,0.00015342,2]
[323009936,1713586250673,-704.63,0.00015342,2]
[323009937,1713586250683,-736.28,0.00015342,2]
[323009938,1713586250693,-1154.13,0.00015342,2]
[323009939,1713586250704,-577.19,0.00015342,2]
[323009940,1713586250714,-590.71,0.00015342,2]
[323009941,1713586250724,-500.0,0.00015342,2]
[323009942,1713586250734,-500.0,0.00015342,2]
[323009943,1713586250744,-500.0,0.00015342,2]
[323009944,1713586250754,-573.26,0.00015342,2]
[323009945,1713586250763,-507.44,0.00015342,2]
[323009946,1713586250774,-549.05,0.00015342,2]
[323009947,1713586250783,-1018.96,0.00015342,2]
[323009948,1713586250794,-500.0,0.00015342,2]
[323009949,1713586250804,-500.0,0.00015342,2]
[323009950,1713586250814,-500.0,0.00015342,2]
[323009951,1713586250823,-1479.17,0.00015342,2]
[323009952,1713586250833,-500.0,0.00015342,2]
[323009953,1713586250843,-500.0,0.00015342,2]
[323009954,1713586250853,-500.0,0.00015342,2]
[323009955,1713586250863,-500.0,0.00015342,2]
[323009956,1713586250873,-500.0,0.00015342,2]
[323009957,1713586250883,-500.0,0.00015342,2]
[323009958,1713586250893,-500.0,0.00015342,2]
[323009959,1713586250903,-500.0,0.00015342,2]
[323009960,1713586250912,-1062.73,0.00015342,2]
[323009961,1713586250922,-500.0,0.00015342,2]
[323009962,1713586250932,-547.78,0.00015342,2]
[323009963,1713586250941,-500.0,0.00015342,2]
[323009964,1713586250951,-500.0,0.00015342,2]
[323009965,1713586250960,-624.48,0.00015342,2]
[323009966,1713586250970,-865.85,0.00015342,2]
[323009967,1713586250979,-500.0,0.00015342,2]
[323009968,1713586250989,-160.48,0.00015342,2]
[323009969,1713586250999,-567.72,0.00015342,2]
[323009970,1713586251008,-845.32,0.00015342,2]
[323009971,1713586251018,-1143.63,0.00015342,2]
[323009972,1713586251027,-638.08,0.00015342,2]
[323009973,1713586251036,-500.0,0.00015342,2]
[323009974,1713586251047,-594.56,0.00015342,2]
[323009975,1713586251057,-500.0,0.00015342,2]
[323009976,1713586251066,-626.34,0.00015342,2]
[323009977,1713586251076,-884.38,0.00015342,2]
[323009978,1713586251085,-967.9,0.00015342,2]
[323009979,1713586251094,-500.0,0.00015342,2]
[323009980,1713586251103,-883.92,0.00015342,2]
[323009981,1713586251113,-988.83,0.00015342,2]
[323009982,1713586251122,-500.0,0.00015342,2]
[323009983,1713586251131,-500.0,0.00015342,2]
[323009984,1713586251141,-768.57,0.00015342,2]
[323009985,1713586251150,-500.0,0.00015342,2]
[323009986,1713586251159,-1231.78,0.00015342,2]
[323009987,1713586251169,-534.35,0.00015342,2]
[323009988,1713586251179,-743.83,0.00015342,2]
[323009989,1713586251189,-500.0,0.00015342,2]
[323009990,1713586251200,-500.0,0.00015342,2]
[323009991,1713586251210,-801.05,0.00015342,2]
[323009992,1713586251220,-746.13,0.00015342,2]
[323009993,1713586251231,-418.21993829,0.00015342,2]
[323009994,1713586251241,-511.89,0.00015342,2]
[323009995,1713586251251,-500.0,0.00015342,2]
[323009996,1713586251260,-867.35,0.00015342,2]
[323009997,1713586251269,-500.0,0.00015342,2]
[323009998,1713586251280,-500.0,0.00015342,2]
[323009999,1713586251291,-890.06,0.00015342,2]
[323010000,1713586251302,-698.91,0.00015342,2]
[323010001,1713586251311,-500.0,0.00015342,2]
[323010002,1713586251322,-500.0,0.00015342,2]
[323010003,1713586251331,-529.86,0.00015342,2]
[323010004,1713586251341,-500.0,0.00015342,2]
[323010005,1713586251350,-500.0,0.00015342,2]
[323010006,1713586251360,-500.0,0.00015342,2]
[323010007,1713586251369,-500.0,0.00015342,2]
[323010008,1713586251379,-546.26,0.00015342,2]
[323010009,1713586251388,-500.0,0.00015342,2]
[323010010,1713586251398,-500.0,0.00015342,2]
[323010011,1713586251407,-500.0,0.00015342,2]
[323010012,1713586251416,-500.0,0.00015342,2]
[323010013,1713586251425,-823.36,0.00015342,2]
[323010014,1713586251434,-500.0,0.00015342,2]
[323010015,1713586251444,-500.0,0.00015342,2]
[323010016,1713586251453,-570.23,0.00015342,2]
[323010017,1713586251462,-597.29,0.00015342,2]
[323010018,1713586251471,-500.0,0.00015342,2]
[323010019,1713586251480,-500.0,0.00015342,2]
[323010020,1713586251490,-500.0,0.00015342,2]
[323010021,1713586251499,-500.0,0.00015342,2]
[323010022,1713586251509,-1258.35,0.00015342,2]
[323010023,1713586251518,-500.0,0.00015342,2]
[323010024,1713586251528,-608.76,0.00015342,2]
[323010025,1713586251537,-500.0,0.00015342,2]
[323010026,1713586251549,-500.0,0.00015342,2]
[323010027,1713586251558,-500.0,0.00015342,2]
[323010028,1713586251568,-500.0,0.00015342,2]